[Event "GrandPrix_30.05"]
[Site "Chess.com"]
[Date "2020.05.30"]
[Round "5"]
[White "kotmizer"]
[Black "gygygygygyggygygygy"]
[Result "0-1"]
[WhiteElo "2170"]
[BlackElo "2062"]
[TimeControl "600+2"]
[EndTime "10:29:05 PDT"]
[Termination "gygygygygyggygygygy won by resignation"]

1. e4 {[%clk 0:10:01.9]} 1... Nf6 {[%clk 0:09:59.9]} 2. e5 {[%clk 0:10:02.2]}
2... Nd5 {[%clk 0:10:00.4]} 3. d4 {[%clk 0:10:03.9]} 3... d6 {[%clk 0:10:00.8]}
4. Nf3 {[%clk 0:10:04.3]} 4... Bg4 {[%clk 0:10:00.4]} 5. Be2 {[%clk 0:10:04.8]}
5... c6 {[%clk 0:10:00.8]} 6. O-O {[%clk 0:10:05.4]} 6... Bxf3 {[%clk
0:10:01.7]} 7. Bxf3 {[%clk 0:10:05.8]} 7... dxe5 {[%clk 0:10:03.4]} 8. dxe5
{[%clk 0:10:06.3]} 8... e6 {[%clk 0:10:05]} 9. Qe2 {[%clk 0:10:02]} 9... Nd7
{[%clk 0:10:04.5]} 10. c4 {[%clk 0:10:02.3]} 10... Ne7 {[%clk 0:10:04.7]} 11.
Bf4 {[%clk 0:09:59.9]} 11... Ng6 {[%clk 0:10:04.9]} 12. Bg3 {[%clk 0:10:01.2]}
12... Qc7 {[%clk 0:10:02.8]} 13. Re1 {[%clk 0:10:01.3]} 13... Bb4 {[%clk
0:09:54.3]} 14. Nc3 {[%clk 0:09:58.8]} 14... Bxc3 {[%clk 0:09:34.6]} 15. bxc3
{[%clk 0:09:59.1]} 15... O-O {[%clk 0:09:34.5]} 16. h4 {[%clk 0:09:59.3]} 16...
Ne7 {[%clk 0:09:25.4]} 17. Be4 {[%clk 0:09:59.6]} 17... Nc5 {[%clk 0:09:20.4]}
18. Bc2 {[%clk 0:09:59.3]} 18... Nf5 {[%clk 0:09:11.9]} 19. Bh2 {[%clk
0:09:38.7]} 19... Nxh4 {[%clk 0:08:52.9]} 20. Rad1 {[%clk 0:09:28.6]} 20... Ng6
{[%clk 0:08:25]} 21. Rd4 {[%clk 0:09:26.8]} 21... Rad8 {[%clk 0:07:58.5]} 22. f4
{[%clk 0:08:23]} 22... Qa5 {[%clk 0:07:21.7]} 23. Qe3 {[%clk 0:08:03]} 23... Nh4
{[%clk 0:06:42.3]} 24. Red1 {[%clk 0:07:26.3]} 24... Rxd4 {[%clk 0:05:14.5]} 25.
cxd4 {[%clk 0:07:24.8]} 25... Qxa2 {[%clk 0:04:13]} 26. Qf2 {[%clk 0:07:12.6]}
26... Qxc4 {[%clk 0:03:29.3]} 27. dxc5 {[%clk 0:07:07.6]} 27... Nf5 {[%clk
0:03:24.8]} 28. Rd7 {[%clk 0:06:16.1]} 28... b6 {[%clk 0:02:30]} 29. Rxa7 {[%clk
0:05:22.8]} 29... bxc5 {[%clk 0:02:26.9]} 30. Kh1 {[%clk 0:03:52.6]} 30... Nd4
{[%clk 0:02:13.5]} 31. Bd1 {[%clk 0:03:02.7]} 31... Qc1 {[%clk 0:02:03.6]} 32.
Qf1 {[%clk 0:03:00.5]} 32... Rd8 {[%clk 0:01:53.9]} 33. Bg1 {[%clk 0:02:46.4]}
33... Nf5 {[%clk 0:01:40.4]} 34. Qd3 {[%clk 0:02:45.1]} 34... Rf8 {[%clk
0:01:18.8]} 35. Ra4 {[%clk 0:02:37.7]} 35... h6 {[%clk 0:00:46.8]} 36. Rc4
{[%clk 0:02:35.5]} 36... Qa1 {[%clk 0:00:46]} 37. Bxc5 {[%clk 0:02:28.4]} 37...
Rb8 {[%clk 0:00:43.7]} 38. Bd4 {[%clk 0:02:08.9]} 38... Qa2 {[%clk 0:00:24.2]}
39. Bg1 {[%clk 0:01:03.3]} 39... Rb2 {[%clk 0:00:15.6]} 40. Rc2 {[%clk
0:00:50.5]} 40... Rxc2 {[%clk 0:00:11.8]} 41. Bxc2 {[%clk 0:00:49.3]} 41... Qa1
{[%clk 0:00:12]} 42. g4 {[%clk 0:00:44.4]} 42... Nh4 {[%clk 0:00:10.9]} 43. Qh7+
{[%clk 0:00:41.1]} 43... Kf8 {[%clk 0:00:11.5]} 44. Qe4 {[%clk 0:00:28.7]} 44...
Qf1 {[%clk 0:00:10.9]} 45. Qb4+ {[%clk 0:00:18.3]} 45... Ke8 {[%clk 0:00:09.9]}
46. Qb8+ {[%clk 0:00:18.7]} 46... Kd7 {[%clk 0:00:10.3]} 47. Qd6+ {[%clk
0:00:19.8]} 47... Ke8 {[%clk 0:00:09.4]} 48. Qxc6+ {[%clk 0:00:20.6]} 48... Kd8
{[%clk 0:00:09.1]} 49. Qb6+ {[%clk 0:00:20]} 49... Kc8 {[%clk 0:00:09.7]} 50.
Qc5+ {[%clk 0:00:20.3]} 50... Kd8 {[%clk 0:00:07.8]} 51. Qd4+ {[%clk 0:00:20]}
51... Kc8 {[%clk 0:00:07.5]} 52. Qc3+ {[%clk 0:00:20.2]} 52... Kb8 {[%clk
0:00:08]} 53. Qg3 {[%clk 0:00:20.5]} 53... Nf3 {[%clk 0:00:07.6]} 54. Qg2 {[%clk
0:00:19.5]} 54... Qxg2+ {[%clk 0:00:07.8]} 55. Kxg2 {[%clk 0:00:20.4]} 55...
Ne1+ {[%clk 0:00:08.2]} 56. Kg3 {[%clk 0:00:19.2]} 56... Nxc2 {[%clk 0:00:10.1]}
57. f5 {[%clk 0:00:19.2]} 57... Kc8 {[%clk 0:00:10.3]} 58. Kf4 {[%clk
0:00:18.9]} 58... Kd7 {[%clk 0:00:11]} 59. Bc5 {[%clk 0:00:19.7]} 59... g6
{[%clk 0:00:10.3]} 60. Bf8 {[%clk 0:00:13.1]} 60... gxf5 {[%clk 0:00:09]} 61.
gxf5 {[%clk 0:00:13.9]} 61... h5 {[%clk 0:00:10.2]} 62. Bg7 {[%clk 0:00:09.6]}
62... Nd4 {[%clk 0:00:10.8]} 63. f6 {[%clk 0:00:08.9]} 63... Nf5 {[%clk
0:00:10.7]} 64. Kg5 {[%clk 0:00:07.6]} 64... h4 {[%clk 0:00:11.5]} 65. Kg4
{[%clk 0:00:09.2]} 65... Kc6 {[%clk 0:00:12.2]} 66. Bf8 {[%clk 0:00:08.8]} 66...
Kd5 {[%clk 0:00:13.4]} 67. Bd6 {[%clk 0:00:08.3]} 67... Nxd6 {[%clk 0:00:13.8]}
0-1

[Event "GrandPrix_30.05"]
[Site "Chess.com"]
[Date "2020.05.30"]
[Round "5"]
[White "Chessbuster123"]
[Black "bernereremit"]
[Result "1-0"]
[WhiteElo "1943"]
[BlackElo "2074"]
[TimeControl "600+2"]
[EndTime "10:29:24 PDT"]
[Termination "Chessbuster123 won by resignation"]

1. d4 {[%clk 0:10:01.9]} 1... Nf6 {[%clk 0:10:00.3]} 2. c4 {[%clk 0:10:02]} 2...
g6 {[%clk 0:10:01.4]} 3. g3 {[%clk 0:10:02.5]} 3... Bg7 {[%clk 0:09:59.4]} 4.
Bg2 {[%clk 0:10:03.5]} 4... d5 {[%clk 0:10:01]} 5. cxd5 {[%clk 0:10:03.9]} 5...
Nxd5 {[%clk 0:10:02.1]} 6. e4 {[%clk 0:10:04.8]} 6... Nb6 {[%clk 0:10:03.1]} 7.
Ne2 {[%clk 0:10:05.4]} 7... Nc6 {[%clk 0:09:35.3]} 8. d5 {[%clk 0:09:54.3]} 8...
Ne5 {[%clk 0:09:19.5]} 9. Nbc3 {[%clk 0:09:52.6]} 9... e6 {[%clk 0:08:53.1]} 10.
O-O {[%clk 0:09:41.1]} 10... exd5 {[%clk 0:08:48.5]} 11. exd5 {[%clk 0:09:36.8]}
11... O-O {[%clk 0:08:44.1]} 12. b3 {[%clk 0:09:12.1]} 12... Bg4 {[%clk
0:08:35.9]} 13. f3 {[%clk 0:08:41.2]} 13... Bf5 {[%clk 0:08:15]} 14. Be3 {[%clk
0:08:06.2]} 14... Re8 {[%clk 0:08:09.3]} 15. Bd4 {[%clk 0:07:10.5]} 15... Nxd5
{[%clk 0:07:45.6]} 16. Nxd5 {[%clk 0:06:46.5]} 16... Qxd5 {[%clk 0:07:42.3]} 17.
f4 {[%clk 0:06:48]} 17... Qa5 {[%clk 0:04:10.6]} 18. Bxe5 {[%clk 0:06:22.5]}
18... Rad8 {[%clk 0:03:50.2]} 19. Qe1 {[%clk 0:05:44.6]} 19... Rd2 {[%clk
0:03:49.7]} 20. Rd1 {[%clk 0:04:22.1]} 20... Qb6+ {[%clk 0:03:11.1]} 21. Kh1
{[%clk 0:04:11]} 21... Rxa2 {[%clk 0:03:08.7]} 22. Rd2 {[%clk 0:03:20.1]} 22...
Qxb3 {[%clk 0:02:33.4]} 23. Nd4 {[%clk 0:03:11.3]} 23... Qa4 {[%clk 0:02:15.4]}
24. Nxf5 {[%clk 0:03:01.1]} 24... gxf5 {[%clk 0:02:14.9]} 25. Rxa2 {[%clk
0:03:00.7]} 25... Qxa2 {[%clk 0:02:16.5]} 26. Qb4 {[%clk 0:02:28.2]} 26... b6
{[%clk 0:01:57.9]} 27. Bxg7 {[%clk 0:01:53.5]} 27... Kxg7 {[%clk 0:01:59.8]} 28.
Qc3+ {[%clk 0:01:54.2]} 28... Kg6 {[%clk 0:01:42.6]} 29. Qxc7 {[%clk 0:01:46.8]}
29... Re6 {[%clk 0:01:32.3]} 30. g4 {[%clk 0:01:38.5]} 30... Re2 {[%clk
0:01:16.5]} 31. Qc6+ {[%clk 0:01:33.7]} 31... Kg7 {[%clk 0:01:12.8]} 32. gxf5
{[%clk 0:01:28.4]} 32... Rc2 {[%clk 0:01:10.1]} 33. f6+ {[%clk 0:01:24.2]} 33...
Kh6 {[%clk 0:01:08.6]} 34. Qf3 {[%clk 0:01:17.9]} 34... Qe6 {[%clk 0:01:08.5]}
35. Rg1 {[%clk 0:01:01.4]} 35... Rc5 {[%clk 0:01:01.9]} 36. Bh3 {[%clk
0:00:49.1]} 36... Qc6 {[%clk 0:00:52]} 37. Qxc6 {[%clk 0:00:44.8]} 37... Rxc6
{[%clk 0:00:53.9]} 38. Ra1 {[%clk 0:00:38.1]} 38... a5 {[%clk 0:00:53.9]} 39.
Kg2 {[%clk 0:00:35.2]} 39... Rxf6 {[%clk 0:00:54.4]} 40. Kf3 {[%clk 0:00:36.2]}
40... Rc6 {[%clk 0:00:51.2]} 41. Rb1 {[%clk 0:00:25.6]} 41... Kg6 {[%clk
0:00:37.7]} 42. Bf1 {[%clk 0:00:23.6]} 42... Kf6 {[%clk 0:00:21.6]} 43. Ke4
{[%clk 0:00:21.5]} 43... Re6+ {[%clk 0:00:21.2]} 44. Kd5 {[%clk 0:00:20.9]}
44... a4 {[%clk 0:00:17.1]} 45. Ra1 {[%clk 0:00:19.4]} 45... Re3 {[%clk
0:00:11.9]} 46. Rxa4 {[%clk 0:00:16.7]} 46... Kf5 {[%clk 0:00:13.2]} 47. Kd4
{[%clk 0:00:08.3]} 47... Rb3 {[%clk 0:00:13.1]} 48. Bd3+ {[%clk 0:00:07.8]}
48... Kg4 {[%clk 0:00:13.4]} 49. Ra7 {[%clk 0:00:09.2]} 49... Kxf4 {[%clk
0:00:13.9]} 50. Rxf7+ {[%clk 0:00:10.2]} 50... Kg5 {[%clk 0:00:15.1]} 51. Rxh7
{[%clk 0:00:11.2]} 51... Rb4+ {[%clk 0:00:16.4]} 52. Kc3 {[%clk 0:00:12.2]}
52... Rh4 {[%clk 0:00:17.4]} 53. Rg7+ {[%clk 0:00:11.7]} 53... Kf6 {[%clk
0:00:18]} 54. Rg2 {[%clk 0:00:13]} 54... b5 {[%clk 0:00:17.6]} 55. Bc2 {[%clk
0:00:10.5]} 55... Rh3+ {[%clk 0:00:18.4]} 56. Kb4 {[%clk 0:00:11]} 56... Rh4+
{[%clk 0:00:19.8]} 57. Kxb5 {[%clk 0:00:11.9]} 57... Rh5+ {[%clk 0:00:21.3]} 58.
Kc4 {[%clk 0:00:12.8]} 58... Rh4+ {[%clk 0:00:22.4]} 59. Kd3 {[%clk 0:00:14.1]}
59... Kf7 {[%clk 0:00:22]} 60. Ke3 {[%clk 0:00:15.1]} 60... Kf6 {[%clk
0:00:23.3]} 61. Kf3 {[%clk 0:00:16.5]} 61... Rc4 {[%clk 0:00:23.9]} 62. Be4
{[%clk 0:00:14.9]} 62... Rc3+ {[%clk 0:00:24.1]} 63. Kf4 {[%clk 0:00:16]} 63...
Ra3 {[%clk 0:00:25.6]} 64. Rg6+ {[%clk 0:00:16.3]} 64... Kf7 {[%clk 0:00:26.8]}
65. h4 {[%clk 0:00:17.7]} 65... Ra1 {[%clk 0:00:26.6]} 66. Rb6 {[%clk
0:00:16.5]} 66... Rf1+ {[%clk 0:00:26.9]} 67. Bf3 {[%clk 0:00:16.8]} 67... Re1
{[%clk 0:00:27.8]} 68. h5 {[%clk 0:00:17.9]} 68... Kg7 {[%clk 0:00:28.3]} 69.
Bg4 {[%clk 0:00:17.4]} 69... Ra1 {[%clk 0:00:28.8]} 70. Kg5 {[%clk 0:00:18.1]}
70... Rg1 {[%clk 0:00:27.3]} 71. Rb7+ {[%clk 0:00:18.9]} 71... Kf8 {[%clk
0:00:27.9]} 72. Rc7 {[%clk 0:00:15.3]} 72... Kg8 {[%clk 0:00:25.8]} 73. h6
{[%clk 0:00:16.3]} 73... Kh8 {[%clk 0:00:24.1]} 74. Kf5 {[%clk 0:00:16.1]} 74...
Rf1+ {[%clk 0:00:23.4]} 75. Kg6 {[%clk 0:00:16.5]} 75... Rf8 {[%clk 0:00:21.1]}
76. Rh7+ {[%clk 0:00:17.4]} 76... Kg8 {[%clk 0:00:21.5]} 77. Be6+ {[%clk
0:00:18.8]} 1-0

[Event "GrandPrix_30.05"]
[Site "Chess.com"]
[Date "2020.05.30"]
[Round "5"]
[White "klimkoj"]
[Black "OK97"]
[Result "0-1"]
[WhiteElo "2108"]
[BlackElo "2288"]
[TimeControl "600+2"]
[EndTime "10:29:32 PDT"]
[Termination "OK97 won by resignation"]

1. e4 {[%clk 0:10:00.8]} 1... c5 {[%clk 0:09:51.9]} 2. Nf3 {[%clk 0:09:57.9]}
2... Nc6 {[%clk 0:09:52.7]} 3. d4 {[%clk 0:09:58.6]} 3... cxd4 {[%clk
0:09:53.8]} 4. Nxd4 {[%clk 0:10:00.1]} 4... Nf6 {[%clk 0:09:55.1]} 5. Nc3 {[%clk
0:10:00]} 5... d6 {[%clk 0:09:56.6]} 6. Bg5 {[%clk 0:10:00.3]} 6... e6 {[%clk
0:09:57.3]} 7. Qd2 {[%clk 0:10:01]} 7... a6 {[%clk 0:09:58.5]} 8. O-O-O {[%clk
0:10:01.8]} 8... Bd7 {[%clk 0:10:00.1]} 9. f3 {[%clk 0:10:02.5]} 9... Be7 {[%clk
0:09:59.4]} 10. h4 {[%clk 0:10:02.9]} 10... h6 {[%clk 0:10:00.1]} 11. Be3 {[%clk
0:10:03.2]} 11... h5 {[%clk 0:10:01.4]} 12. Bg5 {[%clk 0:10:03.7]} 12... b5
{[%clk 0:09:56.6]} 13. Nxc6 {[%clk 0:10:01.3]} 13... Bxc6 {[%clk 0:09:57.3]} 14.
Ne2 {[%clk 0:10:02.6]} 14... Qb6 {[%clk 0:09:49.5]} 15. Nf4 {[%clk 0:09:55.2]}
15... a5 {[%clk 0:08:47.8]} 16. Kb1 {[%clk 0:09:50.1]} 16... b4 {[%clk
0:08:44.7]} 17. Bc4 {[%clk 0:09:23.3]} 17... a4 {[%clk 0:08:11.9]} 18. Rhe1
{[%clk 0:08:48.1]} 18... Rc8 {[%clk 0:07:19.4]} 19. Nxe6 {[%clk 0:07:53.9]}
19... fxe6 {[%clk 0:07:18.1]} 20. Bxe6 {[%clk 0:07:54.1]} 20... Rd8 {[%clk
0:06:24]} 21. Qd3 {[%clk 0:06:33.3]} 21... Bb5 {[%clk 0:06:08.1]} 22. Qd2 {[%clk
0:06:18.3]} 22... Bd7 {[%clk 0:05:03.7]} 23. Bc4 {[%clk 0:06:17]} 23... Qc5
{[%clk 0:04:56.8]} 24. b3 {[%clk 0:06:11.6]} 24... Kf8 {[%clk 0:03:16.6]} 25.
Be3 {[%clk 0:05:06.9]} 25... Qc7 {[%clk 0:02:13.1]} 26. Bd4 {[%clk 0:04:48.3]}
26... Be8 {[%clk 0:01:55.4]} 27. Qe3 {[%clk 0:03:16.8]} 27... Nd7 {[%clk
0:01:55.1]} 28. Qf4+ {[%clk 0:03:01.1]} 28... Bf6 {[%clk 0:01:55.1]} 29. Bxf6
{[%clk 0:02:36.5]} 29... Nxf6 {[%clk 0:01:55.5]} 30. Qd2 {[%clk 0:02:19.7]}
30... Rb8 {[%clk 0:00:30.1]} 31. f4 {[%clk 0:02:07.5]} 31... Bf7 {[%clk
0:00:16.7]} 32. e5 {[%clk 0:01:14.6]} 32... d5 {[%clk 0:00:17.2]} 33. Bd3 {[%clk
0:01:02.4]} 33... Ne4 {[%clk 0:00:11.1]} 34. Bxe4 {[%clk 0:01:02.4]} 34... dxe4
{[%clk 0:00:13]} 35. Rxe4 {[%clk 0:01:00.5]} 35... Kg8 {[%clk 0:00:11]} 36. f5
{[%clk 0:00:50.9]} 36... axb3 {[%clk 0:00:05.8]} 37. cxb3 {[%clk 0:00:48.3]}
37... Kh7 {[%clk 0:00:07.2]} 38. e6 {[%clk 0:00:35.5]} 38... Rhd8 {[%clk
0:00:08.2]} 39. Qe2 {[%clk 0:00:36.3]} 39... Be8 {[%clk 0:00:07.3]} 40. Rc4
{[%clk 0:00:29.3]} 40... Rxd1+ {[%clk 0:00:06.6]} 41. Qxd1 {[%clk 0:00:28.9]}
41... Qe7 {[%clk 0:00:06.8]} 42. Qd4 {[%clk 0:00:21.9]} 42... Rd8 {[%clk
0:00:06.9]} 43. Qe4 {[%clk 0:00:20.7]} 43... Qf6 {[%clk 0:00:08.2]} 44. Rc1
{[%clk 0:00:20.8]} 44... Rd2 {[%clk 0:00:08.8]} 45. Rc2 {[%clk 0:00:20.2]} 45...
Rd1+ {[%clk 0:00:10.3]} 46. Rc1 {[%clk 0:00:21.3]} 46... Rd2 {[%clk 0:00:10.7]}
47. Rc2 {[%clk 0:00:22.1]} 47... Rd4 {[%clk 0:00:12]} 48. Qf3 {[%clk 0:00:20.2]}
48... Rxh4 {[%clk 0:00:11.9]} 49. g3 {[%clk 0:00:13.9]} 49... Rg4 {[%clk
0:00:08.5]} 50. Rc8 {[%clk 0:00:13]} 50... Bb5 {[%clk 0:00:06.5]} 51. Rc5 {[%clk
0:00:12.5]} 51... Ba6 {[%clk 0:00:05.5]} 52. Rc1 {[%clk 0:00:12]} 52... Rg5
{[%clk 0:00:06.6]} 53. Re1 {[%clk 0:00:09.8]} 53... Rxf5 {[%clk 0:00:07.2]} 54.
Qe4 {[%clk 0:00:10.8]} 54... Bb5 {[%clk 0:00:03.7]} 55. e7 {[%clk 0:00:11.8]}
55... Be8 {[%clk 0:00:04.9]} 56. g4 {[%clk 0:00:11.8]} 56... hxg4 {[%clk
0:00:05.8]} 57. Qxg4 {[%clk 0:00:11.7]} 57... Kg8 {[%clk 0:00:07.1]} 58. Qc4+
{[%clk 0:00:12.3]} 58... Qf7 {[%clk 0:00:07.8]} 59. Qxb4 {[%clk 0:00:13.6]}
59... Rf1 {[%clk 0:00:07.9]} 60. Kb2 {[%clk 0:00:12.9]} 60... Rxe1 {[%clk
0:00:07.6]} 61. Qxe1 {[%clk 0:00:14.8]} 61... Qf6+ {[%clk 0:00:09]} 62. Ka3
{[%clk 0:00:15.3]} 62... Kf7 {[%clk 0:00:10.5]} 63. Qd2 {[%clk 0:00:13.4]} 63...
Qxe7+ {[%clk 0:00:11.7]} 64. Kb2 {[%clk 0:00:13]} 64... Qf6+ {[%clk 0:00:13.2]}
65. Ka3 {[%clk 0:00:14.3]} 65... g5 {[%clk 0:00:14.5]} 66. b4 {[%clk 0:00:15.2]}
66... g4 {[%clk 0:00:13.6]} 67. Qd5+ {[%clk 0:00:16.1]} 67... Qe6 {[%clk
0:00:14.2]} 68. Qh5+ {[%clk 0:00:16.7]} 68... Ke7 {[%clk 0:00:15]} 69. Qg5+
{[%clk 0:00:17.2]} 69... Kd6 {[%clk 0:00:14.7]} 70. Qc5+ {[%clk 0:00:17.1]}
70... Kd7 {[%clk 0:00:14.8]} 71. Qg5 {[%clk 0:00:17.2]} 71... Bf7 {[%clk
0:00:13.7]} 72. Ka4 {[%clk 0:00:16]} 72... Qxa2+ {[%clk 0:00:14.1]} 73. Kb5
{[%clk 0:00:16.9]} 73... Qd5+ {[%clk 0:00:14.8]} 0-1

[Event "GrandPrix_30.05"]
[Site "Chess.com"]
[Date "2020.05.30"]
[Round "5"]
[White "tsaruk_maks"]
[Black "GMMarcinDziuba"]
[Result "0-1"]
[WhiteElo "2379"]
[BlackElo "2555"]
[TimeControl "600+2"]
[EndTime "10:29:39 PDT"]
[Termination "GMMarcinDziuba won by checkmate"]

1. e4 {[%clk 0:10:01.9]} 1... c6 {[%clk 0:09:59.8]} 2. d4 {[%clk 0:10:02.5]}
2... d5 {[%clk 0:10:01.7]} 3. Nd2 {[%clk 0:10:04.1]} 3... dxe4 {[%clk
0:10:02.5]} 4. Nxe4 {[%clk 0:10:06]} 4... Bf5 {[%clk 0:10:03.6]} 5. Ng3 {[%clk
0:10:07.2]} 5... Bg6 {[%clk 0:10:05.2]} 6. h4 {[%clk 0:10:09.1]} 6... h6 {[%clk
0:10:06.5]} 7. h5 {[%clk 0:10:11]} 7... Bh7 {[%clk 0:10:07.3]} 8. Nf3 {[%clk
0:10:12.6]} 8... Nd7 {[%clk 0:10:08.6]} 9. Bd3 {[%clk 0:10:14.2]} 9... Bxd3
{[%clk 0:10:09.8]} 10. Qxd3 {[%clk 0:10:16.1]} 10... e6 {[%clk 0:10:10.2]} 11.
Bd2 {[%clk 0:10:17.6]} 11... Ngf6 {[%clk 0:10:08.9]} 12. O-O-O {[%clk 0:10:19]}
12... Be7 {[%clk 0:10:02.9]} 13. Kb1 {[%clk 0:10:20.4]} 13... c5 {[%clk
0:10:00.6]} 14. Ne4 {[%clk 0:09:24.5]} 14... Qc7 {[%clk 0:09:41.8]} 15. Nxf6+
{[%clk 0:08:50.4]} 15... Nxf6 {[%clk 0:09:41.2]} 16. dxc5 {[%clk 0:08:41.7]}
16... Qxc5 {[%clk 0:09:29.3]} 17. Be3 {[%clk 0:08:37.7]} 17... Qa5 {[%clk
0:09:30.2]} 18. g4 {[%clk 0:08:18.9]} 18... Rd8 {[%clk 0:07:39.6]} 19. Qc4
{[%clk 0:08:17.6]} 19... O-O {[%clk 0:07:36.4]} 20. g5 {[%clk 0:07:29.3]} 20...
hxg5 {[%clk 0:07:34.8]} 21. Rxd8 {[%clk 0:05:49.8]} 21... Rxd8 {[%clk
0:07:33.5]} 22. Nxg5 {[%clk 0:05:50.1]} 22... Qf5 {[%clk 0:05:53]} 23. f4 {[%clk
0:03:35.8]} 23... Ng4 {[%clk 0:04:13.2]} 24. Bc1 {[%clk 0:03:35.2]} 24... e5
{[%clk 0:04:12.6]} 25. Rf1 {[%clk 0:00:15.8]} 25... Rc8 {[%clk 0:02:53.1]} 26.
Qe2 {[%clk 0:00:08.3]} 26... exf4 {[%clk 0:02:36.3]} 27. Rxf4 {[%clk 0:00:09.1]}
27... Qxg5 {[%clk 0:02:12.1]} 28. Rxg4 {[%clk 0:00:10.5]} 28... Qf5 {[%clk
0:02:09.8]} 29. Rf4 {[%clk 0:00:06.5]} 29... Qh7 {[%clk 0:01:57.4]} 30. Rg4
{[%clk 0:00:03.4]} 30... Bf6 {[%clk 0:01:54.3]} 31. Rg2 {[%clk 0:00:04.1]} 31...
Qf5 {[%clk 0:01:45.4]} 32. a3 {[%clk 0:00:04.8]} 32... Kh7 {[%clk 0:01:40]} 33.
Ka2 {[%clk 0:00:04.1]} 33... Rc5 {[%clk 0:01:37.8]} 34. h6 {[%clk 0:00:04.7]}
34... g6 {[%clk 0:01:35.9]} 35. c3 {[%clk 0:00:05.8]} 35... Re5 {[%clk 0:01:34]}
36. Qd2 {[%clk 0:00:04.5]} 36... Re7 {[%clk 0:01:29.5]} 37. Re2 {[%clk
0:00:04.9]} 37... Rd7 {[%clk 0:01:23]} 38. Qe1 {[%clk 0:00:05.4]} 38... Qd5+
{[%clk 0:01:13.9]} 39. Kb1 {[%clk 0:00:06.7]} 39... Qd3+ {[%clk 0:01:13.5]} 40.
Ka2 {[%clk 0:00:07.5]} 40... Qd5+ {[%clk 0:01:10.9]} 41. Kb1 {[%clk 0:00:08.8]}
41... Qf5+ {[%clk 0:01:12]} 42. Ka2 {[%clk 0:00:10]} 42... g5 {[%clk 0:01:13.3]}
43. Re8 {[%clk 0:00:09.6]} 43... g4 {[%clk 0:01:04.5]} 44. Be3 {[%clk
0:00:04.9]} 44... Qd5+ {[%clk 0:00:57.3]} 45. Kb1 {[%clk 0:00:05.7]} 45... Qf3
{[%clk 0:00:47.9]} 46. Bd4 {[%clk 0:00:05.3]} 46... Bxd4 {[%clk 0:00:44.3]} 47.
cxd4 {[%clk 0:00:07.2]} 47... Rxd4 {[%clk 0:00:45.4]} 48. Rh8+ {[%clk
0:00:08.5]} 48... Kxh8 {[%clk 0:00:34.9]} 49. Qe5+ {[%clk 0:00:09.3]} 49... f6
{[%clk 0:00:36]} 50. Qxd4 {[%clk 0:00:09.4]} 50... Kh7 {[%clk 0:00:31.3]} 51.
Qxa7 {[%clk 0:00:06.2]} 51... g3 {[%clk 0:00:28.3]} 52. Qc5 {[%clk 0:00:04.7]}
52... g2 {[%clk 0:00:27.6]} 53. Ka2 {[%clk 0:00:05.4]} 53... Qg4 {[%clk
0:00:18.9]} 54. Qe7+ {[%clk 0:00:03.3]} 54... Kxh6 {[%clk 0:00:19.2]} 55. Qe3+
{[%clk 0:00:05]} 55... Qg5 {[%clk 0:00:19.1]} 56. Qg1 {[%clk 0:00:06.6]} 56...
Qg3 {[%clk 0:00:15.9]} 57. a4 {[%clk 0:00:07.5]} 57... Kh5 {[%clk 0:00:15.2]}
58. a5 {[%clk 0:00:08.3]} 58... f5 {[%clk 0:00:12.6]} 59. b4 {[%clk 0:00:09.2]}
59... f4 {[%clk 0:00:13]} 60. b5 {[%clk 0:00:10.3]} 60... f3 {[%clk 0:00:13.5]}
61. a6 {[%clk 0:00:08.2]} 61... bxa6 {[%clk 0:00:12.8]} 62. bxa6 {[%clk
0:00:10.1]} 62... f2 {[%clk 0:00:14]} 63. Qd1+ {[%clk 0:00:11.8]} 63... Qg4
{[%clk 0:00:12.4]} 64. Qd5+ {[%clk 0:00:12.8]} 64... Kh4 {[%clk 0:00:13.8]} 65.
a7 {[%clk 0:00:05.3]} 65... Qa4+ {[%clk 0:00:14.3]} 66. Kb2 {[%clk 0:00:06.7]}
66... f1=Q {[%clk 0:00:13.8]} 67. Qd8+ {[%clk 0:00:04.5]} 67... Kg3 {[%clk
0:00:13.2]} 68. Qg5+ {[%clk 0:00:05.2]} 68... Qg4 {[%clk 0:00:13.5]} 69. Qe5+
{[%clk 0:00:04.7]} 69... Qff4 {[%clk 0:00:10.3]} 70. Qc3+ {[%clk 0:00:04.9]}
70... Qgf3 {[%clk 0:00:10.2]} 71. Qg7+ {[%clk 0:00:05.4]} 71... Kf2 {[%clk
0:00:11.3]} 72. a8=Q {[%clk 0:00:03.7]} 72... Qd2+ {[%clk 0:00:08.2]} 73. Ka1
{[%clk 0:00:03]} 73... Qfd1# {[%clk 0:00:09.3]} 0-1